Cogmind - Beta 17.1 @@@ ROGUE MODE // 2026.09.24 @ 02:08:16 Player: Caluan Result: Destroyed by 1N-DR9(R) with Subdweller Beam Cannon Performance ------------- Evolutions (0) 0 Regions Visited (3) 600 Robots Destroyed (30) 150 Value Destroyed (677) 677 Prototype IDs (1) 20 Alien Tech Used (0) 0 Bonus (0) 0 TOTAL SCORE: 1447 Bonus ------- None Cogmind --------- Core Integrity 0/250 Matter 283/300 Energy 100/100 System Corruption 0% Temperature Cool (18) Movement Core (750) Ox14 Location -10/Subcaves Parts ------- > --- POWER (1) -------- (None) > --- PROPULSION (2) --- (None) > --- UTILITY (2) ------ High-capacity Storage Unit > --- WEAPON (2) ------- Subdweller Laser > --- INVENTORY (20) --- Heat Sink Improved Heat Sink Large Matter Pod (150) Subdweller Optics Experimental Sensor Array Signal Interpreter Improved Terrain Scanner Seismic Detector Armor Integrity Analyzer Beam Cannon Assault Rifle Light Cannon Bore Cannon Mining Laser Hammer Peak State ------------ > --- POWER ------------ Ion Engine > --- PROPULSION ------- Light Treads Wheel > --- UTILITY ---------- High-capacity Storage Unit Experimental Sensor Array > --- WEAPON ----------- Light Cannon Light Cannon > --- INVENTORY -------- Ion Engine Heat Sink Improved Heat Sink Large Matter Pod Signal Interpreter Improved Terrain Scanner Seismic Detector Beam Cannon Assault Rifle Light Cannon Light Cannon Light Cannon Mining Laser Hammer [Rating: 16] Favorites ----------- Power Ion Engine Engine Ion Engine Propulsion Light Treads Treads Light Treads Wheel Wheel Utility High-capacity Storage Unit Device Heat Sink Storage High-capacity Storage Unit Weapon Light Cannon Energy Gun Medium Laser Ballistic Cannon Light Cannon Build | -11 -10 -10 -10 ------- Run | Yrd Mat Min Sub Slots Evolved . | . . . . Power . | . . . . Propulsion . | . . . . Utility . | . . . . Weapon . | . . . . Parts Attached 20 | 6 8 2 4 Power 2 | 1 . . 1 Engine 2 | 1 . . 1 Core . | . . . . Reactor . | . . . . Propulsion 4 | 2 1 1 . Treads 3 | 2 1 . . Leg . | . . . . Wheel 1 | . . 1 . Hover . | . . . . Flight . | . . . . Utility 6 | 1 4 1 . Device 3 | . 2 1 . Storage 3 | 1 2 . . Processor . | . . . . Hackware . | . . . . Protection . | . . . . Artifact . | . . . . Weapon 8 | 2 3 . 3 Energy Gun 4 | 2 1 . 1 Energy Cannon . | . . . . Ballistic Gun . | . . . . Ballistic Cannon 4 | . 2 . 2 Launcher . | . . . . Special Weapon . | . . . . Impact Weapon . | . . . . Slashing Weapon . | . . . . Piercing Weapon . | . . . . Special Melee Weapon . | . . . . Unidentified Prototypes 1 | . . 1 . Parts Lost 10 | . 1 1 8 Power 2 | . . . 2 Propulsion 4 | . 1 1 2 Utility . | . . . . Weapon 4 | . . . 4 Highest Loss Streak 5 | . 1 1 5 To Critical Strikes . | . . . . Average Backups 11 | 2 10 13 15 Power . | . 1 1 . Propulsion 1 | . 1 . . Utility 4 | . 3 5 8 Weapon 5 | . 5 7 7 Tool/Special . | . . . . Unused Backups 14 | . 2 . 12 Power . | . . . . Propulsion 1 | . 1 . . Utility 6 | . . . 6 Weapon 7 | . 1 . 6 Tool/Special . | . . . . Average Slot Usage (%) 89 | . 90 96 84 Engine 13 | . 14 14 13 Treads 19 | . 21 16 13 Wheel 3 | . . 11 13 Device 9 | . 11 10 . Storage 14 | . 14 14 14 Energy Gun 3 | . 4 . . Ballistic Cannon 24 | . 23 28 27 Peak Build Rating 16 | 6 10 16 9 Average Rating 8 | 5 7 10 8 On Entrance 6 | . 6 10 9 Avg Prop Armor Cover (%) 10 | . . 10 11 Naked Turns . | . . . . Heaviest Build 52 | 13 52 52 51 Greatest Support 40 | 40 40 40 10 Greatest Overweight (x) 5 | . 2 5 5 Average Overweight (x) 2 | . 1 4 5 Largest Inventory Capacity 20 | 8 20 20 20 Average Capacity 17 | 7 16 20 20 Most Carried 17 | 6 14 17 17 Average Carried 11 | 2 10 13 15 Final Capacity 20 | 8 20 20 20 Final Carried 17 | 6 14 17 15 Class Distribution -------------------- 100% | Mutant Dominant Class ---------------- Mutant | -10/Materials Mutant | -10/Mines Mutant | -10/Subcaves Resources | -11 -10 -10 -10 ----------- Run | Yrd Mat Min Sub Matter Collected 790 | 260 381 73 76 Remotely . | . . . . Salvage Created 801 | 130 514 53 104 Parts 51 | 8 39 1 3 Haulers Intercepted 2 | . 2 . . Recyclers Shooed 2 | 1 1 . . Parts Field Recycled . | . . . . Retrieved Matter . | . . . . Parts Self-Destructed 5 | . . . 5 Prevented . | . . . . Parts Restored . | . . . . Kills | -11 -10 -10 -10 ------- Run | Yrd Mat Min Sub Combat Hostiles Destroyed 21 | . 16 2 3 Guns 7 | . 7 . . Cannons 14 | . 9 2 3 Classes Destroyed 9 | 2 6 . 1 Worker 2 | . 2 . . Builder 1 | . 1 . . Tunneler 2 | 2 . . . Hauler 2 | . 2 . . Recycler 1 | 1 . . . Mechanic 1 | . 1 . . Swarmer 6 | . 6 . . Grunt 14 | . 10 2 2 Sentry 1 | . . . 1 Best Kill Streak 3 | 3 3 2 3 Combat Bots Only 3 | . 3 2 3 Max Kills in Single Turn 2 | 1 2 1 1 Gunslinging . | . . . . Exploded . | . . . . Melee . | . . . . Uniques/NPCs Destroyed . | . . . . Combat | -11 -10 -10 -10 -------- Run | Yrd Mat Min Sub Hostile Shots Fired 111 | . 77 8 26 Missed 21 | . 15 1 5 Hits 90 | . 62 7 21 Projectile 90 | . 62 7 21 AOE 1 | . . . 1 Critical Strikes 2 | . 1 . 1 Damage Taken 1494 | . 697 100 697 Core 259 | . 119 . 140 Absorbed by Shields . | . . . . Core Remaining (%) 100 | 100 . . . Volleys Fired 81 | 5 56 6 14 Largest 2 | 2 2 2 2 Hottest 100 | 90 100 60 90 Shots Fired 155 | 10 107 12 26 Gun 79 | 10 65 . 4 Cannon 76 | . 42 12 22 Launcher . | . . . . Special . | . . . . Kinetic 76 | . 42 12 22 Thermal 79 | 10 65 . 4 Explosive . | . . . . Electromagnetic . | . . . . Robot Hit Streak 19 | 5 19 8 16 Robot Miss Streak 2 | 2 2 1 2 Penetration Max . | . . . . Secondary Targets 1 | . 1 . . Max Gunslinging Chain 1 | . 1 . . Shots Hit Robots 109 | 7 70 11 21 Core Hits 42 | 4 30 3 5 Critical Kills . | . . . . Critical Parts Destroyed . | . . . . Critical Strikes 2 | . 1 . 1 Burn 1 | . 1 . . Destroy 1 | . . . 1 Melee Attacks . | . . . . Impact . | . . . . Slashing . | . . . . Piercing . | . . . . Sneak Attacks . | . . . . Combat Hostiles . | . . . . Follow-up Attacks . | . . . . Damage Inflicted 1759 | 83 1066 228 382 Guns 709 | 83 547 . 79 Cannons 961 | . 430 228 303 Explosions . | . . . . Melee . | . . . . Ramming 89 | . 89 . . Kinetic 961 | . 430 228 303 Thermal 709 | 83 547 . 79 Explosive . | . . . . Electromagnetic . | . . . . Impact . | . . . . Slashing . | . . . . Piercing . | . . . . Highest Corruption . | . . . . Average Corruption . | . . . . Corruption Purged . | . . . . Corruption Blocked . | . . . . Overload Shots . | . . . . Overflow Damage 15 | . . . 15 Projectiles 15 | . . . 15 Explosions . | . . . . Melee . | . . . . Knockbacks 10 | . 5 1 4 Impact . | . . . . Kinetic 9 | . 5 1 3 Secondary 1 | . . . 1 Self-Inflicted Damage . | . . . . Shots . | . . . . Rammed 19 | . 19 . . Targets Rammed 22 | . 22 . . Kicked . | . . . . Crushed 3 | . 3 . . Highest Temperature 381 | 60 381 . 8 Average Temperature 99 | 28 108 . 8 Received Heat Transfer 546 | . 288 63 195 Effects 4 | . 4 . . Shutdowns 1 | . 1 . . Energy Bleed 1 | . 1 . . Interference 2 | . 2 . . Siege Activations . | . . . . Martial Activations . | . . . . Shielding Activations . | . . . . Robots Disrupted . | . . . . Combat Hostiles . | . . . . Robots Corrupted . | . . . . Combat Hostiles . | . . . . Parts Fried . | . . . . Impact Corruptions . | . . . . Robots Melted . | . . . . Combat Hostiles . | . . . . Parts Melted 4 | 1 3 . . Heat Transferred 2014 | 223 1691 . 100 Parts Sabotaged . | . . . . Parts Stolen . | . . . . Parts Stripped . | . . . . Power Chain Reactions . | . . . . Alert | -11 -10 -10 -10 ------- Run | Yrd Mat Min Sub Maximum Alert Level . | . . . . Low Security (%) 100 | 100 100 100 . Level 1 . | . . . . Level 2 . | . . . . Level 3 . | . . . . Level 4 . | . . . . Level 5 . | . . . . High Security . | . . . . Max Security . | . . . . Peak Influence 134 | 5 134 56 . Initial 34 | . . 34 . Average 30 | . 35 13 . Influence Increases 618 | 15 466 67 70 Destroy 0b10 Robot/C 420 | . 320 40 60 Destroy 0b10 Robot/NC 50 | 15 30 5 . Destroy Leader 84 | . 64 10 10 Successful Hack 16 | . 4 12 . Destroy Structure 3 | . 3 . . Lose Combat Pursuer 45 | . 45 . . Influence Decreases 618 | 15 378 155 70 Entered New Map 54 | . . 54 . Time Decay 542 | 15 376 91 60 Lost Part 22 | . 2 10 10 Squads Dispatched 2 | . 2 . . Investigation . | . . . . Extermination . | . . . . Reinforcement 2 | . 2 . . Assault . | . . . . Garrison . | . . . . Intercept . | . . . . Searches Triggered . | . . . . Construction Impeded . | . . . . Haulers Reinforced . | . . . . Active Scanning Responses . | . . . . Cargo Convoy Interrupts . | . . . . Stealth | -11 -10 -10 -10 --------- Run | Yrd Mat Min Sub Distress Signals 2 | . 2 . . Communications Jammed . | . . . . Distress Signals . | . . . . Times Spotted 49 | . 40 3 6 Peak Tracking Total 16 | . 4 16 3 Tactical Retreats 4 | . 3 1 . Traps | -11 -10 -10 -10 ------- Run | Yrd Mat Min Sub Traps Triggered 4 | . 1 . 3 Indirectly . | . . . . Trap Hack Attempts . | . . . . Triggered . | . . . . Disarmed . | . . . . Reprogrammed . | . . . . Reused . | . . . . Traps Extracted . | . . . . Installed . | . . . . Triggered . | . . . . Machines | -11 -10 -10 -10 ---------- Run | Yrd Mat Min Sub Machines Disabled . | . . . . Max in Single Turn . | . . . . Machines Repaired . | . . . . Machines Dismantled . | . . . . Machines Sabotaged . | . . . . Overloaded Fab Kills . | . . . . Hacking | -11 -10 -10 -10 --------- Run | Yrd Mat Min Sub Machines Accessed 7 | . 5 1 1 Terminals 6 | . 5 1 . Fabricators . | . . . . Repair Stations . | . . . . Recycling Units . | . . . . Scanalyzers . | . . . . Garrison Access . | . . . . Total Hacks 16 | . 8 5 3 Successful 13 | . 7 3 3 Failed 3 | . 1 2 . Catastrophic 1 | . . 1 . Database Lockouts . | . . . . Manual 13 | . 7 6 . Terminals 13 | . 8 5 . Fabricators . | . . . . Repair Stations . | . . . . Recycling Units . | . . . . Scanalyzers . | . . . . Garrison Access . | . . . . Terminal Hacks 7 | . 2 2 3 Record 3 | . . . 3 Part Schematic 1 | . 1 . . Robot Analysis 2 | . . 2 . Locate Traps 1 | . 1 . . Fabricator Hacks . | . . . . Repair Station Hacks . | . . . . Recycling Unit Hacks . | . . . . Scanalyzer . | . . . . Garrison Access Hacks . | . . . . Unauthorized Hacks 6 | . 5 1 . Terminals 6 | . 5 1 . Botnet 6 | . 5 1 . Fabricators . | . . . . Repair Stations . | . . . . Recycling Units . | . . . . Scanalyzers . | . . . . Garrison Access . | . . . . Data Cores Recovered . | . . . . Used . | . . . . Hacking Detections 2 | . 2 . . Full Trace Events . | . . . . Feedback Events . | . . . . Feedback Blocked . | . . . . Robot Schematics Acquired . | . . . . Robots Built . | . . . . Authchips . | . . . . Time . | . . . . Total Robot Build Rating . | . . . . Part Schematics Acquired 1 | . 1 . . Parts Built . | . . . . Authchips . | . . . . Time . | . . . . Total Part Build Rating . | . . . . Part Studies Acquired . | . . . . Parts Repaired . | . . . . Time . | . . . . Parts Recycled . | . . . . Recycled Matter . | . . . . Retrieved Matter . | . . . . Retrieved Components . | . . . . Parts Scanalyzed . | . . . . Part Schematics Acquired . | . . . . Parts Damaged . | . . . . Bothacking | -11 -10 -10 -10 ------------ Run | Yrd Mat Min Sub Used RIF Installer . | . . . . Robots Hacked . | . . . . Non-combat . | . . . . Combat . | . . . . Robot Hacks Applied . | . . . . Relay Couplers Released . | . . . . Fabnet Peak Effective % . | . . . . Robots Rewired . | . . . . Allies Hacked . | . . . . Hacks Repelled . | . . . . Allies | -11 -10 -10 -10 -------- Run | Yrd Mat Min Sub Total Allies 3 | . . 3 . Largest Group 3 | . . 3 . Highest-Rated Group 40 | . . 40 . Highest-Rated Ally 16 | . . 16 . Total Orders . | . . . . Ally Attacks 15 | . . 15 . Total Damage 183 | . . 183 . Kills 3 | . . 3 . Allies Corrupted . | . . . . Allies Melted . | . . . . Intel | -11 -10 -10 -10 ------- Run | Yrd Mat Min Sub Active Infowar (turns) 96 | . . 96 . Sensors 96 | . . 96 . Robot Analysis Total 2 | . . 2 . Derelict Logs Recovered 1 | . . . 1 Drone Launches . | . . . . Drone Recoveries . | . . . . Exploration | -11 -10 -10 -10 ------------- Run | Yrd Mat Min Sub Turns Passed 3873 | 196 2588 414 675 Spaces Moved 1612 | 107 939 173 393 Core 8 | 8 . . . Treads 1059 | 99 939 21 . Legs . | . . . . Wheels 545 | . . 152 393 Hover . | . . . . Flight . | . . . . Fastest Speed 50 | 50 160 155 155 Average Speed 208 | 151 245 165 155 Slowest Speed 320 | 160 320 240 155 Overloaded Moves . | . . . . Propulsion Burnouts . | . . . . Robots Hopped . | . . . . Potential Cave-ins . | . . . . Cave-ins Triggered . | . . . . Exploration Rate (%) 38 | 4 97 32 20 Regions Visited 3 Branch Regions 2 Pre-discovered Areas . | . . . . Known Exits Taken . | . . . . Unknown Exits Taken 3 | 1 1 1 . Scrap Searched 1 | . . 1 . Spaces Dug . | . . . . Terrain Destroyed . | . . . . Melee . | . . . . Projectile . | . . . . AOE . | . . . . Terrain Rammed . | . . . . Walls Destroyed . | . . . . Machines Disabled . | . . . . Actions | -11 -10 -10 -10 --------- Run | Yrd Mat Min Sub Total 1942 | 131 1089 290 432 Wait 170 | 2 45 104 19 Move 1609 | 106 938 172 393 Hop . | . . . . Pick Up 30 | 12 13 3 2 Fast Attach 3 | . 3 . . Attach 14 | 6 2 2 4 Detach 2 | . . 2 . Swap 4 | . 3 1 . Drop 7 | . 7 . . Fire 81 | 5 56 6 14 Melee . | . . . . Ram . | . . . . Kick . | . . . . Crush 22 | . 22 . . Escape Stasis . | . . . . Rewire . | . . . . Trap . | . . . . Miscellaneous . | . . . . Route ------- -11/Scrapyard -10/Materials (discovered 4 exits: [*Mat x3] / *Min) -10/Mines -10/Subcaves History --------- Turn | Location | Event 11 | -11/Scrapyard | Discovered new exit (range 14) 197 | -11/Scrapyard | Entered Materials 312 | -10/Materials | Build established: Mutant 324 | -10/Materials | Discovered new exit (range 16) 559 | -10/Materials | Discovered new exit (range 10) 1246 | -10/Materials | Discovered new exit (range 16) 2156 | -10/Materials | Discovered new exit (range 16) 2785 | -10/Materials | Entered Mines 2920 | -10/Mines | Assisted by bots powering up and referring to "LRC-V3" 2958 | -10/Mines | Assembled infested the area 2963 | -10/Mines | Assisted by a Guerilla fighting off Assembled 2990 | -10/Mines | Found a damaged Exp. Sensor Array with a note attached 2993 | -10/Mines | Found Prototype Device 2997 | -10/Mines | Identified Exp. Sensor Array 3035 | -10/Mines | Lost 3 allies 3177 | -10/Mines | Discovered new exit (range 9) 3199 | -10/Mines | Entered Subcaves 3239 | -10/Subcaves | Core integrity fell below 50% 3758 | -10/Subcaves | Visited Clippyterm 3762 | -10/Subcaves | Learned Factory stockpile data 3856 | -10/Subcaves | Ambushed by Subdweller buried in earth 3858 | -10/Subcaves | Core integrity fell below 20% 3874 | -10/Subcaves | Destroyed by 1N-DR9(R) with Subdweller Beam Cannon Last Messages --------------- >>Record! "Finders Keepers" It looks like you're interested in reappropriating Complex 0b10 components, would you like help? Data stored: Factory stockpile data. >>Record "LU-1G1" It looks like you're researching the legendary digger of dangerously deep tunnels, unfortunately it seems not even members of the Boring Crew know what became of that one. 03848_ 8I-7FU(u) tweaks Twisted Machinery. 03857_ 1N-DR9(R): "NOSTUCKSUB!" 03859_ 1N-DR9(R) knocked back. 03862_ Lgt. Treads destroyed. 03864_ Lgt. Cannon destroyed. 03865_ Wheel destroyed. 03866_ FY-82M(R) knocked back. 03870_ Lgt. Cannon destroyed. 03872_ FY-82M(R) suffers critical hit (Destroy). 03874_ Ion Engine destroyed. Map ----- +----------------------------------------------------+ | ?## #??????# ### # #???????????????????? | | ??## #??????## #### ##?# ##???????????????????? | | ???####???????## #?# #??# ##??????????????????? | | ???????????????###?# #??# ##?????????????????? | | ??????????????####### #?## #?????????????????? | | ??????????????#"""## ##? ##????????????????? | | ??????????????#"" ## #?# #????????????????? | | ??????????????#"X ### #?????????????????? | | ??????????????#"" ## # # #?????????????????? | | ??????????????#"""### ##????????????????? | | ??????????????#####?# #????????????????? | | ???????????????????## # ## #????????????????? | | ???????????????????# ####### ##????????????????? | | ???????????????????## #? # #?????????????????? | | ???????????????????## #? ##?????????????????? | | ??????????????????## ## # ##??????????????????? | | ??????????????????# ##????????????????????? | | ??????????????????# ###????????????????????? | | ??????????????????# ##???????????????????? | | ??????????????????## #???????????????????? | | ???????????????????###; ##???????????????????? | | ????????????????????##; ##????????????????????? | | ????????????????????#;; ;##????????????????????? | | ????????????????????#; ;;;#????????????????????? | | ????????????????????#;% ;;# ## # #??????????????? | | ????????????????????#;;R @ #??????????????? | | ????????????????????# ;R ;; ; # #??????????????? | | ????????????????????##R ;;#####??????????????????? | | ?????????????????????##%###??????????????????????? | | ?????????????????????# %#????###?????????????????? | | ?????????????????????# ###### #?????????????????? | | ????????????????????## #?????????????????? | | ????????????????????# " #?????????????????? | | ????????????????????# "## # #????????????????? | | ????????????????????# """#"# " ?????????????? | | ????????????????????##"""""" """"" #???????????? | | ?????????????????????" "#""###""""" ##???????????? | | ????????????????????#""""##??#"""""##????????????? | | ????????????????????##""#????##" ??????????????? | | ?????????????????????#"???????? ?????????????????? | | ?????????????????????????????????????????????????? | | ?????????????????????????????????????????????????? | | ?????????????????????????????????????????????????? | | ?????????????????????????????????????????????????? | | ?????????????????????????????????????????????????? | | ?????????????????????????????????????????????????? | | ?????????????????????????????????????????????????? | | ?????????????????????????????????????????????????? | | ?????????????????????????????????????????????????? | | ?????????????????????????????????????????????????? | +----------------------------------------------------+ Best States ------------- Heat Dissipation 39 Energy Generation 10 Energy Capacity 250 Matter Stores 300 Matter Capacity 300 Sight Range 16 Robot Scan Range 20 Terrain Scan Density 10 Evasion (%) 40 Recoil Reduction 2 Item Schematics ----------------- Huge Storage Unit | -10/Materials | Hacked Robot Schematics ------------------ None Fabricated ------------ Nothing Repaired ---------- Nothing Studied --------- None Alien Tech Used ----------------- None Achievements -------------- None Challenges ------------ None Game ------ Seed ScimitarDamperInverter Manual? 0 Play Time 00:17:33 Cumulative 333.7 hours Start 2026.09.24 @ 01:44:12 End 2026.09.24 @ 02:08:16 Sessions 1 Manual Loads 0 Difficulty Rogue Special Mode None Game No. 374 Rogue 374 Adventurer 0 Explorer 0 Win Type - Total 4 Types 3/0/1/0/0/0/0/0/0/0 Lore% 58 Gallery% 61 Achievement% 49 Wizard Run 0 Options --------- Layout 1 ASCII 0 Keyboard 0 Movement Numpad Keybinds 0 Fullscreen 2 Font 24/Smallcaps Map View 50x35 Zoom Use 0% Tactical HUD 1 Map Filters NONE Filters NONE Steam 1 RUN: 7d284cb3-060a-4b13-b56f-9e231a353baf